[Event "Germany Countries-chT Youth 2022"]
[Site "Wiesbaden"]
[Date "2022.10.04"]
[Round "7"]
[White "Campora, Daniel H."]
[Black "Hubert, Charlotte"]
[Result "1-0"]
[ECO "A46"]
[WhiteElo "2344"]
[BlackElo "1671"]
[Annotator "TA"]
[PlyCount "103"]
[EventDate "2022.09.28"]
[EventType "team-tourn"]
[EventRounds "7"]
[EventCountry "GER"]
[SourceTitle "playchess.com"]
[Source "ChessBase"]
[SourceQuality "1"]
[TimeControl "40/5400+30:1800+30"]

{[%evp 11,103,-21,4,0,0,-8,8,7,8,-8,22,-3,21,22,25,21,20,18,20,18,39,27,122,132,139,137,133,22,34,32,34,10,50,7,8,-95,7,2,23,0,0,0,22,16,40,38,37,28,27,28,27,26,37,22,28,29,29,22,22,22,216,204,232,248,233,175,175,179,266,258,477,477,505,498,505,502,484,458,443,443,741,731,1234,1205,29954,12797,4806,4722,29974,29972,29978,29979,29963,1691]} 1. d4 {[%emt 0:00:03]} Nf6 {[%emt 0:00:10]} 2. Nf3 {[%emt 0:00:08]} e6 {[%emt 0:00:07]} 3. Bg5 {[%emt 0:00:05]} d6 {[%emt 0:00:06]} 4. Nbd2 {[%emt 0:00:56]} h6 {[%emt 0:00:10]} 5. Bxf6 {[%emt 0:01:41]} Qxf6 {[%emt 0:00:09]} 6. e4 {[%emt 0:00:44]} Nd7 {[%emt 0:03:15]} (6... g5 $5 {[%cal Rg5g4]}) 7. Bd3 {[%emt 0:00:56] A46: 1 d4 Nf6 2 Nf3 e6: Torre, London and Colle Systems.} e5 {[%emt 0:06:15] was the old line (7...g6).} 8. c3 {[%emt 0:12:00]} g6 {[%emt 0:06:32]} 9. Nc4 {[%emt 0:05:39] The position is equal.} Bg7 {[%emt 0:04:05] [#]} 10. Qd2 $146 {[%emt 0:04:56]} ({Predecessor:} 10. Qc2 O-O 11. O-O exd4 12. cxd4 c6 13. a4 Nb6 14. Ne3 a5 15. Rab1 Be6 16. h4 {½-½ (58) Zhdanenia,K (2293)-Mason,I (2236) ICCF email 2015}) 10... a6 {[%emt 0:07:01]} 11. Bc2 {[%emt 0:03:35]} Qd8 {[%emt 0:17:57]} 12. Rd1 {[%emt 0:07:43]} exd4 {[%emt 0:07:29]} 13. Nxd4 {[%emt 0:01:23]} O-O {[%emt 0:04:39]} 14. O-O {[%emt 0:00:54]} Ne5 {[%emt 0:04:12]} 15. Ne3 {[%emt 0:12:42]} Bd7 {[%emt 0:09:07]} 16. f4 {[%emt 0:01:04]} Nc6 {[%emt 0:02:40]} (16... Ng4 $11) 17. Nf3 $16 {[%emt 0:00:43] White is more active.} Re8 {[%emt 0:03:49]} 18. e5 {[%emt 0:10:46]} Be6 {[%emt 0:05:53][%cal Rd6e5]} 19. exd6 {[%emt 0:03:22]} (19. Qf2 $16) 19... Qxd6 $11 {[%emt 0:02:21]} 20. Qxd6 {[%emt 0:01:06]} cxd6 {[%emt 0:00:06]} 21. Nd5 {[%emt 0:00:23] Threatens to win with Nc7.} Rac8 {[%emt 0:01:18] Prevents Nc7.} (21... Nd4 $5 22. Nxd4 Bxd5 $11) 22. a3 {[%emt 0:03:26]} Na5 {[%emt 0:01:51] And now ...Nc4 would win.} 23. Nb6 {[%emt 0:05:30]} (23. Ne3 $11 {keeps the balance.}) 23... Rcd8 {[%emt 0:02:42]} ({Better is} 23... Rc6 $17 24. Ba4 Rxb6 25. Bxe8 Kf8) 24. Ba4 {[%emt 0:00:50]} Re7 {[%emt 0:01:30]} 25. Rfe1 {[%emt 0:00:57] aiming for Nd5.} Rc7 {[%emt 0:00:52]} 26. Nd4 {[%emt 0:01:25]} Bxd4+ {[%emt 0:01:38]} (26... Bg4 $5 {[%cal Rg4d1]}) 27. Rxd4 {[%emt 0:00:03]} Nc4 {[%emt 0:03:04]} 28. Nxc4 {[%emt 0:01:15]} Rxc4 {[%emt 0:00:40]} 29. Ree4 {[%emt 0:06:31]} Rxd4 {[%emt 0:01:38]} 30. Rxd4 {[%emt 0:00:04][%mdl 4096] Endgame KRB-KRB} Kf8 {[%emt 0:00:40]} 31. Kf2 {[%emt 0:02:26]} Ke7 {[%emt 0:00:17]} 32. Ke3 {[%emt 0:00:38]} Rc8 {[%emt 0:01:01]} 33. Bd1 {[%emt 0:01:25]} Rc5 {[%emt 0:01:39]} 34. Bf3 {[%emt 0:00:47]} b5 {[%emt 0:01:10]} 35. Be2 {[%emt 0:02:24]} Bc4 $2 {[%emt 0:00:55] [#] A mistake that costs the game.} (35... h5 $11) 36. b4 $1 $18 {[%emt 0:00:55]} Rc7 {[%emt 0:00:42]} 37. Bxc4 {[%emt 0:00:13]} bxc4 {[%emt 0:00:01] KR-KR} 38. Re4+ {[%emt 0:01:22]} Kd7 {[%emt 0:00:27]} 39. Kd4 {[%emt 0:00:07] Kd5 is the strong threat.} Kc6 {[%emt 0:00:11]} (39... a5 {was called for.} 40. g3 (40. bxa5 Ra7 $16) 40... Ra7) 40. a4 {[%emt 0:00:16][%cal Ba3a4,Ba4b5][%mdl 32]} d5 $2 {[%emt 0:00:52]} (40... f5 41. Re6 g5) 41. Re5 {[%emt 0:30:59]} Rd7 {[%emt 0:04:06]} 42. b5+ {[%emt 0:00:00]} axb5 {[%emt 0:00:27]} 43. axb5+ {[%emt 0:00:00]} Kb6 {[%emt 0:00:39]} 44. Rxd5 {[%emt 0:00:00]} Ra7 {[%emt 0:01:52]} (44... Rxd5+ 45. Kxd5 Kxb5 46. g4) 45. g3 {[%emt 0:00:00]} Ra2 {[%emt 0:01:22]} (45... Rc7 $142 46. f5 gxf5 47. Rxf5 Rc8) 46. Kxc4 {[%emt 0:00:00] [#] Black must now prevent Rd6+.} Rxh2 {[%emt 0:00:37]} 47. Rd6+ {[%emt 0:00:00]} Kc7 {[%emt 0:00:09]} 48. Kc5 {[%emt 0:00:00] White threatens b6+ and mate.} Rc2 {[%emt 0:00:24]} 49. b6+ {[%emt 0:00:00]} Kb7 {[%emt 0:00:25]} 50. c4 {[%emt 0:00:00] White mates.} h5 {[%emt 0:00:40]} 51. Rd7+ {[%emt 0:00:00]} Kc8 {[%emt 0:00:33]} 52. Rxf7 {[%emt 0:00:00] Weighted Error Value: White=0.16 (very precise) /Black=0.58} (52. Rc7+ $142 Kb8 53. Rxf7 Re2 54. Rf6 Kc8 55. Rxg6 Kd7 56. Rg7+ Ke6 57. b7) 1-0

[Event "Germany Countries-chT Youth 2022"]
[Site "Wiesbaden"]
[Date "2022.10.04"]
[Round "7"]
[White "Schneider, Jana"]
[Black "Bock, Marlon"]
[Result "1-0"]
[ECO "B30"]
[WhiteElo "2323"]
[BlackElo "1866"]
[Annotator "TA"]
[PlyCount "99"]
[EventDate "2022.09.28"]
[EventType "team-tourn"]
[EventRounds "7"]
[EventCountry "GER"]
[SourceTitle "playchess.com"]
[Source "ChessBase"]
[SourceQuality "1"]
[TimeControl "40/5400+30:1800+30"]

{[%evp 15,99,29,36,26,28,28,34,27,31,27,35,22,43,10,8,10,19,20,36,43,40,21,76,33,70,0,75,76,77,49,93,78,93,86,69,69,102,85,81,47,63,23,30,0,96,75,77,0,95,78,111,111,114,110,143,141,138,121,150,141,206,159,167,146,416,97,452,177,821,810,776,772,1522,1250,1252,1243,5323,3774,2619,2447,29969,29966,29959,29958,1830,1437]} 1. e4 {[%emt 0:00:06]} c5 {[%emt 0:00:05]} 2. Nf3 {[%emt 0:00:05]} Nc6 {[%emt 0:00:09]} 3. Nc3 {[%emt 0:00:07]} e5 {[%emt 0:07:33]} 4. Bc4 {[%emt 0:00:14]} d6 {[%emt 0:00:44]} 5. d3 {[%emt 0:00:09]} Be7 {[%emt 0:01:21]} 6. Nd2 {[%emt 0:00:19]} Nf6 {[%emt 0:04:13]} 7. Nf1 {[%emt 0:00:20]} O-O {[%emt 0:02:36]} 8. Ne3 {[%emt 0:00:28]} Be6 {[%emt 0:08:04]} 9. a3 {[%emt 0:02:23] B30: Sicilian: 2...Nc6 3 Bb5, lines without ...g6.} h6 {[%emt 0:06:31]} 10. O-O {[%emt 0:13:21] [#]} Rc8 $146 {[%emt 0:05:53]} ({Predecessor:} 10... Qd7 11. Ncd5 Bxd5 12. Nxd5 Nxd5 13. Bxd5 Bf6 14. c3 Ne7 15. Ba2 Ng6 16. Qf3 Qe7 {1-0 (35) Gross,S (2390)-Jirovsky,P (2260) Bayern 1997}) 11. Bd2 {[%emt 0:04:38] White is slightly better.} Nd7 {[%emt 0:09:06]} 12. Ncd5 {[%emt 0:11:26]} Bg5 {[%emt 0:04:25]} 13. b4 {[%emt 0:06:45]} Ne7 {[%emt 0:04:18]} 14. c3 {[%emt 0:14:12]} Bxd5 {[%emt 0:02:28]} 15. Nxd5 {[%emt 0:01:31]} Bxd2 {[%emt 0:03:54]} 16. Qxd2 {[%emt 0:01:07]} Nb6 {[%emt 0:02:48]} 17. Nxb6 {[%emt 0:01:19]} axb6 {[%emt 0:02:57]} 18. f4 {[%emt 0:06:06]} Nc6 {[%emt 0:07:37]} (18... exf4 $11 19. Qxf4 d5) 19. f5 {[%emt 0:04:10][%cal Of5f6] [#] f6! is the strong threat.} Qf6 {[%emt 0:01:51]} 20. Rfb1 {[%emt 0:05:51]} (20. bxc5 $14 bxc5 21. Rfb1) 20... Rc7 {[%emt 0:03:55]} (20... cxb4 $1 $11 21. axb4 Rfd8) 21. bxc5 {[%emt 0:04:36]} bxc5 {[%emt 0:00:19]} 22. Rb6 {[%emt 0:00:07]} Ra8 {[%emt 0:02:45]} 23. Qa2 {[%emt 0:00:30]} Qe7 {[%emt 0:03:23]} 24. Bd5 {[%emt 0:02:08]} Ra7 {[%emt 0:00:54]} 25. Rab1 {[%emt 0:00:24]} Na5 {[%emt 0:02:24]} 26. Qe2 {[%emt 0:02:48] White is much more active. The black rooks are badly placed.} Nc6 {[%emt 0:02:06]} 27. R1b3 {[%emt 0:00:40]} Na5 {[%emt 0:01:02]} 28. R3b5 {[%emt 0:00:15]} Nc6 {[%emt 0:00:22]} 29. Qb2 {[%emt 0:00:13]} Nd8 {[%emt 0:03:28]} (29... Qg5 $11 {keeps the balance.}) 30. Rb3 $36 {[%emt 0:02:02][%mdl 2048] White is on the roll.} Nc6 {[%emt 0:00:58]} 31. R3b5 {[%emt 0:05:34]} (31. Qf2 $16) 31... Nd8 {[%emt 0:00:17]} (31... Qg5 $11 {remains equal.}) 32. g3 $16 {[%emt 0:00:22] White now steadily converts the win.} Nc6 {[%emt 0:00:40]} 33. Kg2 {[%emt 0:00:08]} Nd8 {[%emt 0:00:46]} 34. h4 {[%emt 0:00:47]} Nc6 {[%emt 0:01:46]} 35. Qa2 {[%emt 0:02:53]} Qd7 {[%emt 0:02:26]} 36. Rb1 {[%emt 0:01:36]} Qe7 {[%emt 0:01:01]} 37. Kh3 {[%emt 0:01:03]} Rc8 {[%emt 0:01:29]} (37... Ra4 $16 38. Qb3 Ra7) 38. Qb2 {[%emt 0:00:40][%cal Rb6b7]} Rc7 {[%emt 0:00:26]} 39. g4 {[%emt 0:00:35]} Na5 $2 {[%emt 0:00:58][%mdl 8192]} (39... Qf8 $16 40. g5 Kh8) 40. Qa2 $2 {[%emt 0:00:59]} (40. Rg1 $18) 40... Qd8 $2 {[%emt 0:01:42][%mdl 8192] Inhibits g5.} (40... c4 $16) 41. Qe2 $2 {[%emt 0:35:42]} (41. g5) 41... Kf8 $2 {[%emt 0:03:26]} (41... Nc6) 42. g5 $18 {[%emt 0:00:00]} hxg5 {[%emt 0:05:23]} 43. Qh5 {[%emt 0:00:00]} gxh4 {[%emt 0:04:55]} 44. Qh8+ {[%emt 0:00:00]} Ke7 {[%emt 0:00:09]} 45. Qxg7 {[%emt 0:00:00][%csl Gd5][%cal Rg7f7] [#]} Qf8 {[%emt 0:00:39]} 46. f6+ {[%emt 0:00:00]} Ke8 {[%emt 0:00:32]} 47. Rg1 {[%emt 0:00:00] Threatening mate with Qh7.} Nc6 {[%emt 0:01:57]} 48. Bxc6+ {[%emt 0:00:00]} Rxc6 {[%emt 0:00:09]} 49. Rxc6 {[%emt 0:00:00]} bxc6 {[%emt 0:00:07]} 50. Qh7 {[%emt 0:00:00] Weighted Error Value: White=0.39/Black=0.64} 1-0

[Event "Germany Countries-chT Youth 2022"]
[Site "Wiesbaden"]
[Date "2022.10.04"]
[Round "7"]
[White "Pubantz, Jan"]
[Black "Sommer, Justus"]
[Result "1-0"]
[ECO "E06"]
[WhiteElo "2273"]
[BlackElo "2122"]
[Annotator "TA"]
[PlyCount "39"]
[EventDate "2022.09.28"]
[EventType "team-tourn"]
[EventRounds "7"]
[EventCountry "GER"]
[SourceTitle "playchess.com"]
[Source "ChessBase"]
[SourceQuality "1"]
[TimeControl "40/5400+30:1800+30"]

{[%evp 12,39,10,11,19,10,10,12,9,16,24,33,40,33,74,68,139,141,124,95,259,256,483,514,1106,1091,1099,1093,1013,752]} 1. d4 {[%emt 0:00:02]} d5 {[%emt 0:00:08]} 2. c4 {[%emt 0:00:03]} e6 {[%emt 0:00:08]} 3. Nf3 {[%emt 0:00:09]} Nf6 {[%emt 0:00:12]} 4. g3 {[%emt 0:00:09]} Be7 {[%emt 0:00:24]} 5. Bg2 {[%emt 0:00:07]} O-O {[%emt 0:00:21]} 6. Nc3 {[%emt 0:00:06]} Nbd7 {[%emt 0:03:56]} 7. Qd3 {[%emt 0:00:54]} b6 {[%emt 0:02:36] 7...a6 is a critical line. E06: Closed Catalan: Early deviations.} 8. cxd5 {[%emt 0:01:01]} exd5 {[%emt 0:02:40]} 9. O-O {[%emt 0:02:34]} Bb7 {[%emt 0:01:23] The position is equal.} 10. Bf4 {[%emt 0:01:47]} a6 {[%emt 0:02:11] [#]} 11. Rac1 $146 {[%emt 0:02:17]} ({Predecessor:} 11. Rad1 Ne4 12. Ne5 Ndf6 13. Kh1 Bd6 14. f3 Nxc3 15. bxc3 Nh5 16. Bc1 f6 17. Ng4 {1-0 (38) Miskevicer,B (2133)-Rupp,E (2027) Munich 2003}) 11... Rc8 {[%emt 0:02:59]} 12. Rfd1 {[%emt 0:11:23]} Ne4 {[%emt 0:02:38]} 13. Ne5 {[%emt 0:06:51][%cal Rc3e4]} f5 {[%emt 0:04:53] [#]} (13... Nxc3 $14 14. Rxc3 (14. Qxc3 c5 $14) 14... c6) 14. Nxe4 $1 $16 {[%emt 0:20:44]} fxe4 {[%emt 0:01:44]} 15. Qb3 {[%emt 0:02:01] Hoping for Bh3. White has more active pieces.} Kh8 $2 {[%emt 0:08:37] A mistake that costs the game.} (15... c5 $16 {is a better defense.}) 16. Bh3 $18 {[%emt 0:09:44]} g5 $2 {[%emt 0:08:45]} (16... Nxe5 {was necessary.} 17. Bxc8 (17. Bxe5 c5 $16) (17. dxe5 Rb8 $16) 17... Bxc8) 17. Nxd7 {[%emt 0:02:11] White is clearly winning.} Rxf4 {[%emt 0:03:05]} (17... gxf4 $142 18. Nxf8 Bxf8 19. Bxc8 Bxc8 20. gxf4 Bg4) 18. gxf4 {[%emt 0:00:47]} Qg8 {[%emt 0:04:19]} 19. Kh1 {[%emt 0:02:12]} Bd6 {[%emt 0:01:21]} 20. Ne5 {[%emt 0:05:12] Weighted Error Value: White=0.03 (flawless) /Black=0.73} 1-0

[Event "Germany Countries-chT Youth 2022"]
[Site "Wiesbaden"]
[Date "2022.10.04"]
[Round "7"]
[White "Laux, Dominik"]
[Black "Gluma, Christian"]
[Result "1-0"]
[ECO "B06"]
[WhiteElo "2248"]
[BlackElo "2107"]
[Annotator "TA"]
[PlyCount "53"]
[EventDate "2022.09.28"]
[EventType "team-tourn"]
[EventRounds "7"]
[EventCountry "GER"]
[SourceTitle "playchess.com"]
[Source "ChessBase"]
[SourceQuality "1"]
[TimeControl "40/5400+30:1800+30"]

{[%evp 9,53,41,93,72,54,75,116,42,94,83,364,354,313,336,355,230,259,239,250,242,212,197,224,191,210,211,280,251,257,244,264,254,260,194,334,302,271,238,329,336,344,313,315,331,435,399]} 1. e4 {[%emt 0:00:29]} g6 {[%emt 0:00:06]} 2. d4 {[%emt 0:00:25]} Bg7 {[%emt 0:00:07]} 3. Nc3 {[%emt 0:00:23]} d6 {[%emt 0:00:42]} 4. f4 {[%emt 0:01:05]} Nd7 {[%emt 0:00:45]} 5. Nf3 {[%emt 0:00:59]} b6 {[%emt 0:00:37]} (5... e6 $14) 6. Bd3 {[%emt 0:03:29][%cal Bf1d3,Bd3f5,Bf5d3][%mdl 32] B06: Modern Defence.} Bb7 {[%emt 0:00:47]} 7. O-O {[%emt 0:01:46]} e6 {[%emt 0:00:53] [#]} 8. e5 {[%emt 0:05:24] [#]} ({White should play} 8. f5 $1 $16 {[%cal Rf5e6]}) 8... Bxf3 $146 {[%emt 0:01:09]} (8... Ne7 $14) ({Predecessor:} 8... Ne7 9. Qe2 O-O 10. Ne4 Nf5 11. c3 c5 12. Be3 dxe5 13. dxe5 Qe7 14. Bf2 h5 {½-½ (82) Jacobson,A (2262)-Goltsev,D (2312) Chess.com INT 2020}) 9. Qxf3 $16 {[%emt 0:00:15][%cal Of4f5] aiming for f5!} d5 $2 {[%emt 0:03:35][%mdl 8192] This move loses the game for Black.} (9... Ne7 $16) 10. f5 $18 {[%emt 0:02:51]} gxf5 {[%emt 0:02:10] [#]} 11. Bxf5 $1 {[%emt 0:13:34][%mdl 512]} Qe7 {[%emt 0:02:37]} (11... exf5 12. Qxf5) 12. Qg3 {[%emt 0:05:27]} Bh6 {[%emt 0:03:49]} 13. Bd3 {[%emt 0:04:22]} O-O-O {[%emt 0:06:49]} 14. Bxh6 {[%emt 0:02:30]} Nxh6 {[%emt 0:00:10]} 15. Qf4 {[%emt 0:00:42]} Qf8 {[%emt 0:00:58]} 16. Rf3 {[%emt 0:03:13]} Rg8 {[%emt 0:04:39]} 17. Rh3 {[%emt 0:02:12]} ({Weaker is} 17. Bxh7 Rg4 18. Qd2 Qg7 $11) 17... Qg7 {[%emt 0:01:00][%csl Gg8][%cal Rg7g2]} 18. g3 {[%emt 0:06:33] Active counter play!} Qg4 {[%emt 0:01:24] Threatens to win with ...Qxf4.} 19. Qxh6 {[%emt 0:04:34]} Qxd4+ {[%emt 0:00:51]} 20. Kh1 {[%emt 0:00:15]} Nxe5 {[%emt 0:00:54]} 21. Qf4 {[%emt 0:05:16]} ({Inferior is} 21. Bxh7 Ng4 22. Rh4 Qf2 23. Rxg4 (23. Qf4 $2 Qxf4 24. Rxg4 Qf3+ 25. Kg1 Rxg4 $19) 23... Rxg4 $11) 21... Rg4 {[%emt 0:00:52]} (21... Qxf4 {was necessary.} 22. gxf4 Ng4) 22. Qxd4 {[%emt 0:00:20]} Rxd4 {[%emt 0:00:06]} 23. Rxh7 {[%emt 0:06:12] Ba6+ is the strong threat.} Rf8 {[%emt 0:01:48]} 24. Rd1 {[%emt 0:03:42] Hoping for Ba6+.} Kd8 {[%emt 0:00:23]} 25. h3 {[%emt 0:08:12]} c5 {[%emt 0:01:04]} 26. Kg2 {[%emt 0:01:50]} c4 {[%emt 0:01:37]} 27. Ne2 {[%emt 0:02:34] Weighted Error Value: White=0.23 (precise) /Black=0.50} 1-0

[Event "Germany Countries-chT Youth 2022"]
[Site "Wiesbaden"]
[Date "2022.10.04"]
[Round "7"]
[White "Holinka, Henning"]
[Black "Jeschke, Jan"]
[Result "1-0"]
[ECO "B90"]
[WhiteElo "2245"]
[BlackElo "2146"]
[Annotator "TA"]
[PlyCount "97"]
[EventDate "2022.09.28"]
[EventType "team-tourn"]
[EventRounds "7"]
[EventCountry "GER"]
[SourceTitle "playchess.com"]
[Source "ChessBase"]
[SourceQuality "1"]
[TimeControl "40/5400+30:1800+30"]

{[%evp 18,97,28,24,26,32,25,29,36,37,61,19,77,33,52,32,35,37,69,72,66,54,57,57,56,0,0,0,5,0,0,0,0,0,0,0,0,9,52,52,51,60,60,60,181,144,396,399,355,247,241,238,330,335,579,416,732,735,725,733,677,530,685,670,677,412,412,412,1754,1781,1719,1697,1607,1488,5369,5065,5154,5152,4125,4125,5752,5726]} 1. e4 {[%emt 0:00:03]} c5 {[%emt 0:00:22]} 2. Nf3 {[%emt 0:00:30]} d6 {[%emt 0:00:13]} 3. d4 {[%emt 0:00:07]} cxd4 {[%emt 0:00:04]} 4. Nxd4 {[%emt 0:00:04]} Nf6 {[%emt 0:00:05]} 5. Nc3 {[%emt 0:00:04]} a6 {[%emt 0:00:26]} 6. f3 {[%emt 0:00:22]} e5 {[%emt 0:00:29]} 7. Nb3 {[%emt 0:00:40]} Be6 {[%emt 0:00:33]} 8. Be3 {[%emt 0:00:25]} Be7 {[%emt 0:01:11]} 9. Qd2 {[%emt 0:00:22]} h5 {[%emt 0:00:11]} 10. Be2 {[%emt 0:00:14]} Nbd7 {[%emt 0:00:34] B90: Sicilian Najdorf: Unusual White 6th moves, 6 Be3 Ng4 and 6 Be3 e5.} 11. Nd5 {[%emt 0:00:52]} Bxd5 {[%emt 0:01:32]} 12. exd5 {[%emt 0:00:08]} Qc7 {[%emt 0:00:46] White has an edge. is recently more successful than 12...0-0.} 13. Rc1 {[%emt 0:02:42]} a5 {[%emt 0:00:49]} 14. O-O {[%emt 0:14:10]} h4 {[%emt 0:05:04]} (14... a4 $11 {keeps the balance.} 15. Na1 h4) 15. c4 {[%emt 0:14:19] White is more active.} O-O {[%emt 0:03:53] [#]} 16. Rfd1 $146 {[%emt 0:02:25][%cal Oc4c5]} ({Predecessor:} 16. Bg5 a4 17. Na1 h3 18. g3 e4 19. f4 Rfe8 20. Nc2 e3 21. Qb4 Bd8 22. f5 {0-1 (35) Setyaki,A (2404)-Prraneeth,V (2457) Budapest 2022}) 16... a4 {[%emt 0:00:27]} 17. Na1 {[%emt 0:00:09][%cal Bb3a1,Ba1c2,Bc2d4][%mdl 32]} e4 {[%emt 0:11:13]} 18. f4 {[%emt 0:02:40]} Nc5 {[%emt 0:01:04]} 19. Nc2 {[%emt 0:03:09]} Rfe8 {[%emt 0:01:10]} 20. Nd4 {[%emt 0:01:34]} Qd7 {[%emt 0:03:46]} 21. b4 {[%emt 0:15:56]} (21. Nb5 $14) 21... axb3 $1 $11 {[%emt 0:02:03]} 22. axb3 {[%emt 0:01:24]} h3 {[%emt 0:01:41]} 23. b4 {[%emt 0:09:56]} Nd3 {[%emt 0:00:24]} 24. Bxd3 {[%emt 0:08:52]} exd3 {[%emt 0:01:01]} 25. Qxd3 {[%emt 0:02:19]} Ng4 {[%emt 0:08:52]} 26. Qf5 {[%emt 0:09:36]} Qxf5 {[%emt 0:07:38]} 27. Nxf5 {[%emt 0:00:03] [#] Black must now prevent Bd4.} Bf6 {[%emt 0:03:59]} 28. Bb6 $36 {[%emt 0:06:12][%mdl 2048] White has the initiative.} Ra2 $1 {[%emt 0:11:00]} 29. gxh3 {[%emt 0:00:20]} Nxh2 {[%emt 0:00:46]} 30. Rd3 {[%emt 0:00:29] Prevents Nf3+.} ({Much weaker is} 30. Nxd6 Nf3+ 31. Kf1 Nh2+ 32. Kg1 Nf3+ 33. Kf1 Nh2+ 34. Kg1 $11) 30... Ree2 {[%emt 0:01:32]} (30... Re4 $1 $14) 31. Kh1 {[%emt 0:01:16] aiming for Bg1.} Nf1 $2 {[%emt 0:13:30][%mdl 8192] A mistake that costs the game.} (31... Re4 $16) 32. Bg1 $18 {[%emt 0:01:16]} (32. Rxf1 $2 {gets mated.} Rh2+ 33. Kg1 Rag2#) 32... Nd2 {[%emt 0:02:10]} 33. Ng3 {[%emt 0:00:53]} Re8 {[%emt 0:01:26]} 34. c5 {[%emt 0:00:28][%cal Bc4c5,Bc5c6][%mdl 32]} Rc8 {[%emt 0:02:54]} 35. c6 {[%emt 0:00:17]} Kh7 $2 {[%emt 0:01:36]} (35... b5 36. Nf5 Ne4) 36. b5 {[%emt 0:00:55]} g6 {[#]} (36... Rb2 $142 37. cxb7 Rb8) 37. Rxd2 $1 {[%emt 0:02:43][%mdl 512]} Rxd2 {[%emt 0:01:01]} 38. Ne4 {[%emt 0:00:07]} Bb2 {[%emt 0:00:28]} 39. Rb1 {[%emt 0:00:25]} Rxd5 {[%emt 0:01:15]} 40. Rxb2 {[%emt 0:01:05]} Kg7 {[%emt 0:00:37]} 41. cxb7 {[%emt 0:30:43]} Rb8 {[%emt 0:30:08]} 42. Rd2 {[%emt 0:00:00]} ({Not} 42. Nc3 Rd3 43. Kg2 Rxb7 $18) 42... Rxd2 {[%emt 0:00:00]} (42... Rxb5 $142 43. Nxd6 R5xb7 44. Nxb7 Rxb7 45. Bd4+ Kh6) 43. Nxd2 {[%emt 0:00:00] White is clearly winning.} Rxb7 {[%emt 0:00:00]} 44. b6 {[%emt 0:00:00][%cal Bb5b6,Bb6b7][%mdl 32]} Kf6 {[%emt 0:00:00]} 45. Nc4 {[%emt 0:00:00]} d5 {[%emt 0:00:00]} 46. Bd4+ {[%emt 0:00:00]} Ke6 {[%emt 0:00:00]} 47. Na5 {[%emt 0:00:00]} Rb8 {[%emt 0:00:00]} 48. Nc6 {[%emt 0:00:00]} Ra8 {[%emt 0:00:00]} 49. b7 {[%emt 0:00:00] Weighted Error Value: White=0.35/Black=0.40} 1-0

[Event "Germany Countries-chT Youth 2022"]
[Site "Wiesbaden"]
[Date "2022.10.04"]
[Round "7"]
[White "Bornholdt, Joa Max"]
[Black "Stelmaszyk, Nico"]
[Result "1/2-1/2"]
[ECO "D33"]
[WhiteElo "2196"]
[BlackElo "2355"]
[Annotator "TA"]
[PlyCount "44"]
[EventDate "2022.09.28"]
[EventType "team-tourn"]
[EventRounds "7"]
[EventCountry "GER"]
[SourceTitle "playchess.com"]
[Source "ChessBase"]
[SourceQuality "1"]
[TimeControl "40/5400+30:1800+30"]

{[%evp 16,44,31,25,29,27,35,23,18,16,89,87,107,97,97,96,197,197,193,186,185,194,193,187,194,77,71,83,66,76,77]} 1. d4 {[%emt 0:00:19]} d5 {[%emt 0:01:03]} 2. c4 {[%emt 0:00:08]} e6 {[%emt 0:00:05]} 3. Nc3 {[%emt 0:00:04]} c5 {[%emt 0:00:05]} 4. cxd5 {[%emt 0:00:29]} exd5 {[%emt 0:00:23]} 5. Nf3 {[%emt 0:00:34][%cal Bg1f3,Bf3d4,Bd4b3][%mdl 32]} Nf6 {[%emt 0:00:06]} 6. g3 {[%emt 0:00:04]} Nc6 {[%emt 0:00:06]} 7. Bg2 {[%emt 0:00:57]} cxd4 {[%emt 0:00:05] is now debated instead of 7...Be7.} 8. Nxd4 {[%emt 0:00:06]} Bc5 {[%emt 0:00:04]} 9. Nb3 {[%emt 0:13:27][%csl LRc5,LRd5]} Bb6 {[%emt 0:00:07] D33: Tarrasch Defence: 6 g3 sidelines.} 10. O-O {[%emt 0:02:16]} (10. Bxd5 Nb4 11. Bf3 Qxd1+ 12. Kxd1 Ng4 13. Bxg4 Bxg4 $11) 10... d4 {[%emt 0:02:28]} 11. Na4 {[%emt 0:00:18]} O-O {[%emt 0:01:59] White has an edge.} 12. Bg5 {[%emt 0:08:04]} Be6 {[%emt 0:05:33]} (12... Re8 $11 {keeps the balance.}) 13. Nbc5 $16 {[%emt 0:18:42]} ({Much worse is} 13. Nxb6 axb6 14. Qd3 h6 15. Bxf6 Qxf6 $14) 13... Bxc5 {[%emt 0:06:58]} 14. Nxc5 {[%emt 0:00:22]} Qb6 {[%emt 0:00:10][%csl LRb2,LRc5]} 15. Rc1 {[%emt 0:02:59][%cal Ba1c1,Bc1b1,Bb1b7][%mdl 32] [#]} Qxb2 $146 {[%emt 0:06:12]} (15... Nd5 $16) ({Predecessor:} 15... Nd5 16. Nxe6 fxe6 17. Qb3 Qxb3 18. axb3 h6 19. Bd2 Rfd8 20. Rc5 Rd6 21. b4 Ncxb4 22. Bxb4 Nxb4 23. Bxb7 {½-½ (68) Bok,B (2635)-Beerdsen,T (2488) Eindhoven 2019}) 16. Bxf6 $18 {[%emt 0:05:49]} gxf6 {[%emt 0:00:07]} 17. Nxe6 {[%emt 0:00:53]} ({But not} 17. Rb1 Qxa2 18. Rxb7 Ne5 $16) 17... fxe6 {[%emt 0:00:06]} 18. Rb1 {[%emt 0:00:48]} Qxa2 {[%emt 0:02:25]} 19. Rxb7 {[%emt 0:02:24]} Ne5 {[%emt 0:09:58] Against Qd3} 20. Qxd4 {[%emt 0:05:05]} (20. Be4 $18 {has better winning chances.} Rab8 21. Bxh7+ Kh8 22. Bb1) 20... Qxe2 $16 {[%emt 0:06:57]} 21. Qh4 {[%emt 0:03:46][%csl Gb7][%cal Rh4h7] [#] White is much more active.} h5 {[%emt 0:01:17]} 22. Qb4 {[%emt 0:05:21][%mdl 1024] Strongly threatening f4. White has compensation.} Rae8 {[%emt 0:04:12] Weighted Error Value: White=0.10 (very precise) /Black=0.18 (very precise)} (22... Nf3+ $2 23. Bxf3 Qxf3 24. Qe7 Qxb7 25. Qxb7 $18) 1/2-1/2